Workbook

Sheet 2016
A1: 2016年度新能源汽车推广应用补助资金清算审核车辆信息表
A2: 地区 | B2: 序号 | C2: 车辆生产企业 | D2: 车辆型号 | E2: 申报推广数 （辆） | F2: 申请补助标准 （万元） | G2: 申请清算资金 （万元） | H2: 核定推广数 （辆） | I2: 核定补助标准 （万元） | J2: 应清算补助资金 （万元） | K2: 按整车企业取整后补助资金（万元） | L2: 核减原因 | M2: 此前待扣回预拨资金（万元） | N2: 此次扣回预拨资金（万元） | O2: 扣回相应预拨资金后剩余资金（万元）
A3: 总计 | E3: =SUM(E4:E17)/3 -> 680 | G3: =SUM(G4:G17)/3 -> 4015.3658 | H3: =SUM(H4:H17)/3 -> 616 | J3: =SUM(J4:J17)/3 -> 2772 | K3: =SUM(K4:K16)/2 -> 2773 | M3: =SUM(M4:M16)/2 -> 0 | N3: =SUM(N4:N16)/2 -> 0 | O3: =SUM(O4:O16)/2 -> 2773
A4: 北京市 | B4: 合计 | E4: =SUM(E5:E7)/2 -> 619 | G4: =SUM(G5:G7)/2 -> 2785.5 | H4: =SUM(H5:H7)/2 -> 609 | J4: =SUM(J5:J7)/2 -> 2740.5 | K4: =K5 -> 2741 | M4: =M5 -> 0 | N4: =N5 -> 0 | O4: =O5 -> 2741
B5: 1 | C5: 北京新能源汽车股份有限公司 | D5: 小计 | E5: =SUM(E6:E7) -> 619 | G5: =SUM(G6:G7) -> 2785.5 | H5: =SUM(H6:H7) -> 609 | J5: =SUM(J6:J7) -> 2740.5 | K5: =ROUND(J5,0) -> 2741 | M5: 0 | N5: 0 | O5: =K5-N5 -> 2741
D6: BJ7001BPH1-BEV | E6: 605 | F6: 4.5 | G6: =E6*F6 -> 2722.5 | H6: 595 | I6: 4.5 | J6: =H6*I6 -> 2677.5 | L6: 核减10辆，原因为：车辆注册登记信息有误
D7: BJ7001BPH2-BEV | E7: 14 | F7: 4.5 | G7: =E7*F7 -> 63 | H7: 14 | I7: 4.5 | J7: =H7*I7 -> 63
A8: 江苏省 | B8: 合计 | E8: =SUM(E9:E14)/2 -> 54 | G8: =SUM(G9:G14)/2 -> 1198.3658 | H8: =SUM(H9:H14)/2 -> 0 | J8: =SUM(J9:J14)/2 -> 0 | K8: =K9 -> 0 | M8: =M9 -> 0 | N8: =N9 -> 0 | O8: =O9 -> 0
B9: 1 | C9: 江苏陆地方舟新能源电动汽车有限公司 | D9: 小计 | E9: =SUM(E10:E14) -> 54 | G9: =SUM(G10:G14) -> 1198.3658 | H9: =SUM(H10:H14) -> 0 | J9: =SUM(J10:J14) -> 0 | K9: =ROUND(J9,0) -> 0 | M9: 0 | N9: 0 | O9: =K9-N9 -> 0
D10: RQ5022XXYEVH9 | E10: 31 | F10: 8.0118 | G10: =E10*F10 -> 248.3658 | H10: 0 | I10: 0 | J10: =H10*I10 -> 0 | L10: 核减31辆，原因为：车辆注册登记信息有误,现场核查不通过
D11: RQ6110YEVH4 | E11: 3 | F11: 50 | G11: =E11*F11 -> 150 | H11: 0 | I11: 0 | J11: =H11*I11 -> 0 | L11: 核减3辆，原因为：现场核查不通过
D12: RQ6830GEVH2 | E12: 15 | F12: 40 | G12: =E12*F12 -> 600 | H12: 0 | I12: 0 | J12: =H12*I12 -> 0 | L12: 核减15辆，原因为：车辆注册登记信息有误,现场核查不通过
D13: RQ6830YEVH11 | E13: 3 | F13: 40 | G13: =E13*F13 -> 120 | H13: 0 | I13: 0 | J13: =H13*I13 -> 0 | L13: 核减3辆，原因为：现场核查不通过
D14: RQ6830YEVH8 | E14: 2 | F14: 40 | G14: =E14*F14 -> 80 | H14: 0 | I14: 0 | J14: =H14*I14 -> 0 | L14: 核减2辆，原因为：现场核查不通过
A15: 四川省 | B15: 合计 | E15: =SUM(E16:E17)/2 -> 7 | G15: =SUM(G16:G17)/2 -> 31.5 | H15: =SUM(H16:H17)/2 -> 7 | J15: =SUM(J16:J17)/2 -> 31.5 | K15: =K16 -> 32 | M15: =M16 -> 0 | N15: =N16 -> 0 | O15: =O16 -> 32
B16: 1 | C16: 四川野马汽车股份有限公司 | D16: 小计 | E16: =SUM(E17) -> 7 | G16: =SUM(G17) -> 31.5 | H16: =SUM(H17) -> 7 | J16: =SUM(J17) -> 31.5 | K16: =ROUND(J16,0) -> 32 | M16: 0 | N16: 0 | O16: =K16-N16 -> 32
D17: SQJ6460BEV | E17: 7 | F17: 4.5 | G17: =E17*F17 -> 31.5 | H17: 7 | I17: 4.5 | J17: =H17*I17 -> 31.5
